bitfinex/quotes_ETHUSD_20230830
["timestamp","ask_amount","ask_price","bid_price","bid_amount"]
[1693409061792,5.87141,1703.2,1702.8,1.036906]
[1693409062102,16.59878165,1703.2,1702.8,1.036906]
[1693409062310,10.72733165,1703.2,1702.8,1.036906]
[1693409062511,8.08185,1703.3,1702.8,1.036906]
[1693409062688,10.95533065,1703.3,1702.8,1.036906]
[1693409063394,2.2108,1703.3,1702.8,1.036906]
[1693409063601,29.98,1703.4,1702.9,0.09626951]
[1693409064316,29.98,1703.4,1702.9,0.41068706]
[1693409065432,5.87029,1703.5,1702.9,0.41068706]
[1693409065914,5.87001,1703.6,1702.9,0.41068706]
[1693409066145,5.87001,1703.6,1703.0,0.09626951]
[1693409066670,14.61353065,1703.6,1703.0,0.09626951]
[1693409066870,2.87348065,1703.5,1702.9,0.31441755]
[1693409067069,2.87348065,1703.5,1702.8,1.13317551]
[1693409067232,14.74136,1703.4,1702.8,1.13317551]
[1693409067586,2.87348065,1703.3,1702.8,1.036906]
[1693409067940,8.74468065,1703.3,1702.8,1.036906]
[1693409068569,14.61588065,1703.3,1702.8,1.036906]
[1693409068771,8.74468065,1703.3,1702.8,1.13317551]
[1693409068937,5.48200447,1703.3,1702.8,1.13317551]
[1693409069659,11.35301447,1703.3,1702.8,1.13317551]
[1693409070355,5.48200447,1703.3,1702.8,1.13317551]
[1693409070756,2.87348065,1703.3,1702.8,1.13317551]
[1693409071075,16.94581,1703.4,1702.8,1.13317551]
[1693409071290,19.81929065,1703.4,1702.8,1.13317551]
[1693409072981,16.28555502,1703.6,1702.8,4.00665616]
[1693409073180,6.48116169,1703.5,1702.9,0.40066562]
[1693409073345,11.74375065,1703.5,1702.8,1.13317551]
[1693409073679,12.35143169,1703.5,1702.8,1.13317551]
[1693409074049,0.30034202,1703.4,1702.8,1.13317551]
[1693409075283,0.30034202,1703.4,1702.8,4.00665616]
[1693409076881,0.30034202,1703.4,1702.8,1.13317551]
[1693409077088,6.17097202,1703.4,1702.8,1.13317551]
[1693409077386,6.17097202,1703.4,1702.8,1.50910734]
[1693409079699,9.04445267,1703.4,1702.8,1.50910734]
[1693409079901,11.07585267,1703.4,1702.8,1.50910734]
[1693409080923,4.88448065,1703.3,1702.8,1.036906]
[1693409081123,8.74459065,1703.3,1702.8,1.13317551]
[1693409081637,2.33174202,1703.4,1702.8,1.13317551]
[1693409081924,5.20522267,1703.4,1702.8,1.13317551]
[1693409082092,11.07586267,1703.4,1702.8,1.13317551]
[1693409082447,6.17098202,1703.4,1702.8,2.57117551]
[1693409083583,12.04162202,1703.4,1702.8,2.57117551]
[1693409084127,18.80507898,1703.4,1702.8,1.036906]
[1693409084297,24.67571898,1703.4,1702.8,1.036906]
[1693409084626,24.67571898,1703.4,1702.8,1.13317551]
[1693409084790,25.28340002,1703.4,1702.8,1.13317551]
[1693409084989,27.24580002,1703.4,1702.8,1.13317551]
[1693409085297,0.30034202,1703.4,1702.8,2.57117551]
[1693409085630,0.30034202,1703.4,1702.9,1.438]
[1693409086221,0.30034202,1703.4,1703.0,0.09626951]
[1693409090502,0.30034202,1703.4,1703.1,1.438]
[1693409093546,0.30034202,1703.4,1703.2,1.438]
[1693409093772,0.30034202,1703.4,1703.2,1.53426951]
[1693409094040,0.60768104,1703.6,1703.2,1.53426951]
[1693409094342,0.27530428,1703.3,1703.2,1.53426951]
[1693409094641,0.60768104,1703.6,1703.2,1.53426951]
[1693409099345,0.91152156,1703.7,1703.4,1.438]
[1693409099346,0.60768104,1703.7,1703.4,1.438]
[1693409099696,0.55768104,1703.7,1703.4,1.438]
[1693409100110,0.55768104,1703.7,1703.3,1.438]
[1693409100403,0.55768104,1703.7,1703.5,0.09626951]
[1693409101355,0.91152156,1703.8,1703.5,0.09626951]
[1693409101859,0.91152156,1703.9,1703.4,1.438]
[1693409102019,0.91152156,1703.9,1703.5,1.53426951]
[1693409103132,0.91152156,1703.9,1703.5,0.09626951]
[1693409103356,1.53353992,1703.9,1703.3,0.09626951]
[1693409103532,1.53489909,1703.9,1703.3,0.09626951]
[1693409104146,0.27664518,1703.8,1703.3,0.09626951]
[1693409104664,2.34174518,1703.8,1703.3,0.09626951]
[1693409106665,2.34174518,1703.8,1703.3,0.56818754]
[1693409109334,2.34174518,1703.8,1703.5,11.74052]
[1693409109536,2.95025646,1703.8,1703.5,11.74052]
[1693409109731,2.34174518,1703.8,1703.5,11.74052]
[1693409109985,2.95025646,1703.8,1703.5,11.74052]
[1693409110136,2.34174518,1703.8,1703.5,11.74052]
[1693409110748,2.34174518,1703.8,1703.5,17.61078]
[1693409111366,2.34174518,1703.8,1703.5,17.41078]
[1693409112786,0.27664518,1703.8,1703.5,17.41078]
[1693409112962,0.27664518,1703.8,1703.5,21.64403205]
[1693409113477,0.27664518,1703.8,1703.5,18.7705514]
[1693409113778,0.27664518,1703.8,1703.5,18.5705514]
[1693409114685,0.27664518,1703.8,1703.5,17.21078]
[1693409115044,0.27664518,1703.8,1703.5,11.34052]
[1693409115890,0.27664518,1703.8,1703.5,5.47026]
[1693409116186,0.2,1703.5,1703.3,0.09626951]
[1693409119019,0.27627435,1703.4,1703.1,7.30949]
[1693409119177,0.27627435,1703.4,1703.1,5.87149]
[1693409119520,3.437,1703.7,1703.1,5.87149]
[1693409119675,0.3437,1703.6,1703.1,5.87149]
[1693409120107,2.87348065,1703.5,1703.1,5.87149]
[1693409120696,2.4228,1703.6,1703.1,5.87149]
[1693409121607,2.4228,1703.6,1703.1,7.30949]
[1693409121916,2.4228,1703.6,1703.1,7.10949]
[1693409122312,0.3437,1703.6,1703.1,7.86799912]
[1693409122618,2.60751128,1703.7,1703.2,4.31148065]
[1693409122918,2.60751128,1703.7,1703.3,1.438]
[1693409123213,2.60751128,1703.7,1703.2,1.438]
[1693409123214,1.999,1703.7,1703.2,1.438]
[1693409123422,1.999,1703.7,1703.3,1.438]
[1693409123977,2.75371128,1703.8,1703.3,1.438]
[1693409124204,4.29417848,1703.8,1703.2,4.31148065]
[1693409124975,4.29417848,1703.8,1703.3,1.438]
[1693409126177,0.60851128,1703.7,1703.1,7.10949]
[1693409126381,6.47823128,1703.7,1703.0,1.91360122]
[1693409126595,0.64782313,1703.6,1703.0,2.03155645]
[1693409127615,2.54902313,1703.6,1703.0,2.03155645]
[1693409128035,2.54902313,1703.6,1703.0,1.438]
[1693409129512,2.54902313,1703.6,1702.9,7.50062195]
[1693409129714,2.54902313,1703.6,1703.0,1.02029186]
[1693409130305,3.15773411,1703.6,1703.0,1.02029186]
[1693409133026,3.15773411,1703.6,1703.0,2.45829186]
[1693409133223,0.31577341,1703.5,1703.0,1.438]
[1693409133424,3.15773411,1703.6,1703.0,1.438]
[1693409134018,0.36514036,1703.5,1703.0,1.438]
[1693409137761,0.97385134,1703.5,1703.0,1.438]
[1693409138267,3.13815134,1703.5,1703.0,1.438]
[1693409144630,3.13815134,1703.5,1703.2,1.438]
[1693409144631,0.36514036,1703.5,1703.2,1.438]
[1693409145554,0.36514036,1703.5,1703.3,2.87348065]
[1693409145745,0.36514036,1703.5,1703.4,1.438]
[1693409145955,0.36514036,1703.5,1703.4,1.86914807]
[1693409146106,30.58871098,1703.8,1703.4,1.86914807]
[1693409146308,30.58871098,1703.8,1703.5,1.438]
[1693409146604,0.60871098,1703.8,1703.5,1.438]
[1693409148424,1.52177746,1703.9,1703.5,1.438]
[1693409148723,0.60871098,1703.9,1703.5,1.438]
[1693409148926,0.36550608,1703.8,1703.5,1.438]
[1693409150784,0.36550608,1703.8,1703.4,1.86914807]
[1693409150958,0.97421706,1703.8,1703.3,4.31148065]
[1693409151453,3.00721706,1703.8,1703.3,4.31148065]
[1693409152803,3.00721706,1703.8,1703.3,1.438]
[1693409153747,3.00721706,1703.8,1703.4,1.438]
[1693409154575,0.36550608,1703.8,1703.4,4.31148065]
[1693409154793,0.36550608,1703.8,1703.5,1.86914807]
[1693409157697,0.36550608,1703.8,1703.4,1.438]
[1693409157914,0.36550608,1703.8,1703.3,1.438]
[1693409158117,0.36550608,1703.8,1703.3,2.45813948]
[1693409158418,0.36550608,1703.8,1703.4,1.438]
[1693409159128,0.36550608,1703.8,1703.5,1.438]
[1693409159719,0.36550608,1703.8,1703.5,1.86914807]
[1693409161245,0.36550608,1703.8,1703.4,1.438]
[1693409163733,0.36550608,1703.8,1703.3,1.438]
[1693409164041,0.36550608,1703.8,1703.4,1.438]
[1693409164196,2.40770608,1703.8,1703.4,1.438]
[1693409166725,2.87348065,1703.7,1703.1,2.52535037]
[1693409166927,4.98268065,1703.7,1703.1,1.90984608]
[1693409167249,0.36475976,1703.6,1703.1,1.90984608]
[1693409168055,2.44995976,1703.6,1703.1,1.90984608]
[1693409168624,2.44995976,1703.6,1703.2,1.438]
[1693409178806,2.44995976,1703.6,1703.2,1.91484515]
[1693409179900,2.44995976,1703.6,1703.3,1.438]
[1693409180088,0.36475976,1703.6,1703.3,1.438]
[1693409180505,2.71157638,1703.8,1703.3,1.438]
[1693409180810,0.36498916,1703.7,1703.3,1.438]
[1693409181873,2.35958916,1703.7,1703.3,1.438]
[1693409188515,2.35958916,1703.7,1703.2,1.91484515]
[1693409188722,2.35958916,1703.7,1703.2,4.31148065]
[1693409188880,2.35958916,1703.7,1703.3,1.02016782]
[1693409189080,2.35958916,1703.7,1703.3,1.97116485]
[1693409190521,0.36498916,1703.7,1703.4,1.438]
[1693409191189,0.36498916,1703.7,1703.4,4.31148065]
[1693409191378,0.36498916,1703.7,1703.6,1.438]
[1693409191804,1.998,1703.9,1703.6,1.438]
[1693409193924,0.36622648,1703.8,1703.6,1.438]
[1693409200040,0.36622648,1703.8,1703.7,1.438]
[1693409200547,2.69657638,1704.1,1703.7,1.438]
[1693409201437,4.60337638,1704.1,1703.7,1.438]
[1693409204248,3.9939,1704.1,1703.7,1.438]
[1693409204465,4.60337638,1704.1,1703.7,1.438]
[1693409204644,3.9939,1704.1,1703.7,1.438]
[1693409206127,1.9068,1704.1,1703.8,1.438]
[1693409206341,2.76252612,1704.3,1703.9,1.438]
[1693409207077,4.74212612,1704.3,1703.9,1.438]
[1693409207283,4.74212612,1704.3,1703.9,1.86914807]
[1693409208170,4.131,1704.3,1703.9,1.86914807]
[1693409208855,0.3664252,1704.2,1703.9,0.43114807]
[1693409209388,0.3664252,1704.2,1703.9,1.86914807]
[1693409210343,0.3664252,1704.2,1703.9,4.74262872]
[1693409210552,0.3664252,1704.2,1704.0,0.47426287]
[1693409213682,0.3664252,1704.2,1704.0,1.91226287]
[1693409214082,2.0771,1704.4,1704.0,1.91226287]
[1693409214551,2.0771,1704.4,1704.1,1.438]
[1693409214753,0.61112612,1704.6,1704.1,1.438]
[1693409215091,2.68822612,1704.6,1704.1,1.438]
[1693409215415,2.0771,1704.6,1704.1,1.438]
[1693409215551,4.0075,1704.6,1704.1,1.438]
[1693409216384,4.0075,1704.6,1704.1,4.31148065]
[1693409216695,4.0075,1704.6,1704.3,1.438]
[1693409217608,0.61112612,1704.8,1704.4,4.31148065]
[1693409217766,2.71392612,1704.9,1704.5,1.438]
[1693409218230,4.0187,1704.9,1704.5,1.438]
[1693409218407,4.0187,1704.9,1704.5,1.86914807]
[1693409218608,4.0187,1704.9,1704.5,0.43114807]
[1693409218914,4.0187,1704.9,1704.2,1.86914807]
[1693409219064,12.75763065,1704.9,1704.2,1.86914807]
[1693409219271,13.34537817,1704.9,1704.2,1.438]
[1693409220710,7.47992817,1704.9,1704.2,1.438]
[1693409221016,7.47992817,1704.9,1704.3,4.31148065]
[1693409221017,4.0187,1704.9,1704.3,4.31148065]
[1693409224089,0.37260203,1704.8,1704.2,1.438]
[1693409224290,0.37260203,1704.8,1704.2,4.31148065]
[1693409224487,0.37260203,1704.8,1704.3,0.43114807]
[1693409224718,1.9061,1704.7,1704.2,4.31148065]
[1693409227119,1.9061,1704.7,1704.2,1.438]
[1693409228024,1.9061,1704.7,1704.1,0.46619816]
[1693409228239,3.6542,1704.6,1704.0,0.8766754]
[1693409228390,1.80342,1704.5,1703.9,0.46588533]
[1693409228699,1.80342,1704.5,1703.8,4.438]
[1693409228904,1.80342,1704.5,1703.8,7.31148065]
[1693409229134,7.67026,1704.5,1703.8,4.31148065]
[1693409229430,0.767026,1704.4,1703.8,4.31148065]
[1693409229604,2.853726,1704.4,1703.8,4.31148065]
[1693409229806,2.853726,1704.4,1703.8,4.77210591]
[1693409229807,2.2162,1704.3,1703.8,4.77210591]
[1693409230219,2.2162,1704.3,1703.8,1.89862526]
[1693409230539,2.2162,1704.3,1703.8,0.46062526]
[1693409230710,3.3099206,1704.3,1703.8,0.46062526]
[1693409231036,3.3099206,1704.3,1703.7,1.438]
[1693409231234,12.05097125,1704.3,1703.5,2.32517632]
[1693409231444,12.05097125,1704.3,1703.4,4.5064114]
[1693409231445,1.438,1704.1,1703.4,0.6152076]
[1693409231597,2.195,1704.0,1703.4,1.63515154]
[1693409231796,2.195,1704.0,1703.3,2.94021771]
[1693409231996,2.195,1704.0,1703.2,0.6152076]
[1693409231997,16.80558065,1704.0,1703.2,0.6152076]
[1693409232226,7.78079,1703.9,1703.2,1.63525942]
[1693409232538,5.08955965,1703.8,1703.1,1.538019]
[1693409232833,10.95900965,1703.8,1703.1,1.63529907]
[1693409233128,2.195,1703.7,1703.1,1.80841631]
[1693409233337,2.195,1703.7,1703.2,1.02009147]
[1693409233635,4.2038,1703.7,1703.2,1.02009147]
[1693409233808,5.72008097,1703.7,1703.2,1.02009147]
[1693409234941,5.72008097,1703.7,1703.1,0.6152076]
[1693409235141,5.72008097,1703.7,1703.1,3.0733202]
[1693409235451,5.72008097,1703.7,1703.2,1.0201126]
[1693409236621,4.2038,1703.7,1703.2,1.0201126]
[1693409236842,4.2038,1703.7,1703.3,1.438]
[1693409239178,0.36730497,1703.6,1703.3,1.438]
[1693409240938,0.36730497,1703.6,1703.1,5.53186457]
[1693409241148,0.36730497,1703.6,1703.2,1.020113]
[1693409241343,0.36730497,1703.6,1703.2,1.96265882]
[1693409241538,0.36730497,1703.6,1703.1,2.53186457]
[1693409241745,0.36730497,1703.6,1703.2,1.02011709]
[1693409244249,0.36730497,1703.6,1703.1,1.91665697]
[1693409244448,0.36730497,1703.6,1703.1,4.79013762]
[1693409244665,0.36730497,1703.6,1703.2,2.87348065]
[1693409244891,0.36730497,1703.6,1703.4,1.438]
[1693409248790,0.36730497,1703.6,1703.3,1.438]
[1693409254790,0.36730497,1703.6,1703.3,0.43114807]
[1693409254985,0.36730497,1703.6,1703.2,1.438]
[1693409256201,2.36780497,1703.6,1703.2,1.438]
[1693409256799,2.36780497,1703.6,1703.3,1.438]
[1693409256967,0.36730497,1703.6,1703.3,1.438]
[1693409263735,0.36730497,1703.6,1703.2,1.438]
[1693409264034,0.36730497,1703.6,1703.1,1.438]
[1693409264208,0.36730497,1703.6,1703.2,1.02010321]
[1693409265234,2.34510497,1703.6,1703.2,1.02010321]
[1693409266401,2.34510497,1703.6,1703.1,1.438]
[1693409267850,2.34510497,1703.6,1703.2,1.0201477]
[1693409268958,5.21858562,1703.6,1703.0,4.02029341]
[1693409269260,0.52185856,1703.5,1703.1,1.63537632]
[1693409269762,0.30075887,1703.4,1703.1,1.63537632]
[1693409272145,0.30075887,1703.4,1703.2,1.02016396]
[1693409272363,0.30075887,1703.4,1703.1,1.53644805]
[1693409272364,0.30075887,1703.4,1703.1,0.61457922]
[1693409272519,0.30075887,1703.4,1703.1,1.63476118]
[1693409273345,0.30075887,1703.4,1703.2,0.61457922]
[1693409276344,0.30075887,1703.4,1703.3,0.61457922]
[1693409276539,0.30075887,1703.4,1703.3,1.63476118]
[1693409277060,0.30075887,1703.4,1703.3,0.61457922]
[1693409277786,0.30075887,1703.4,1703.3,3.38005079]
[1693409278075,2.195,1703.7,1703.3,3.84097171]
[1693409278273,2.195,1703.7,1703.4,1.63645139]
[1693409279457,1.9641,1703.8,1703.4,3.07445139]
[1693409279658,1.9641,1703.8,1703.5,1.02018196]
[1693409283885,0.30231005,1703.7,1703.5,1.02018196]
[1693409286185,0.30231005,1703.7,1703.4,1.438]
[1693409286383,0.30231005,1703.7,1703.4,1.78170592]
[1693409291783,3.78591412,1703.7,1703.2,1.09570361]
[1693409291990,3.78591412,1703.7,1703.3,1.02015941]
[1693409292553,2.87348065,1703.6,1703.3,1.02015941]
[1693409292790,2.87348065,1703.6,1703.1,0.61626943]
[1693409292791,5.87026,1703.5,1703.1,0.61626943]
[1693409292979,0.587026,1703.4,1703.1,1.63651031]
[1693409293285,9.33126665,1703.4,1703.0,0.61626943]
[1693409293490,15.20202665,1703.4,1702.9,2.55841059]
[1693409293655,1.438,1703.3,1703.0,1.02027233]
[1693409293860,1.438,1703.3,1702.8,1.65317543]
[1693409293861,16.05408065,1703.2,1702.8,1.65317543]
[1693409294091,1.60540807,1703.1,1702.9,1.0203878]
[1693409294595,7.47707807,1703.1,1702.9,1.0203878]
[1693409294795,1.60540807,1703.1,1702.9,1.0203878]
[1693409295157,7.47710807,1703.1,1702.9,1.0203878]
[1693409295411,1.60540807,1703.1,1702.9,1.0203878]
[1693409295891,7.47707807,1703.1,1702.9,1.0203878]
[1693409296090,0.74770781,1703.0,1702.8,1.036906]
[1693409296304,7.47725807,1703.1,1702.8,1.036906]
[1693409297700,10.35073872,1703.1,1702.8,1.036906]
[1693409298983,0.29402715,1703.0,1702.8,1.036906]
[1693409301783,3.1675078,1703.0,1702.8,1.036906]
[1693409303099,0.29402715,1703.0,1702.8,1.036906]
[1693409303904,15.95502,1703.3,1702.8,1.036906]
[1693409304118,10.34030265,1703.2,1702.8,1.036906]
[1693409306514,17.64962265,1703.2,1702.8,1.036906]
[1693409307287,11.77830265,1703.2,1702.8,1.036906]
[1693409308618,10.34030265,1703.2,1702.8,1.036906]
[1693409308814,17.64962265,1703.2,1702.8,1.036906]
[1693409308993,1.76496227,1703.1,1702.8,1.036906]
[1693409309327,2.87348065,1703.0,1702.8,1.036906]
[1693409313998,0.25896591,1702.9,1702.8,1.036906]
[1693409315302,2.0858,1703.1,1702.8,1.036906]
[1693409315633,4.95928065,1703.1,1702.8,1.036906]
[1693409316002,6.20189092,1703.1,1702.8,1.036906]
[1693409317231,12.07354092,1703.1,1702.8,1.036906]
[1693409318631,6.20189092,1703.1,1702.8,1.036906]
[1693409320133,1.595502,1703.2,1702.8,1.036906]
[1693409320339,7.46898265,1703.2,1702.8,1.036906]
[1693409321116,4.3215,1703.3,1702.8,2.474906]
[1693409321437,2.2368,1703.3,1702.8,2.474906]
[1693409321632,2.2368,1703.3,1702.9,1.438]
[1693409321824,3.0,1703.4,1702.9,1.438]
[1693409322022,5.87348065,1703.4,1702.9,1.438]
[1693409322197,3.0,1703.4,1702.9,1.438]
[1693409322396,5.1312,1703.5,1702.9,1.438]
[1693409322601,8.00468065,1703.5,1703.0,1.438]
[1693409323337,8.46562604,1703.5,1703.0,1.438]
[1693409323632,13.68101164,1703.5,1703.0,1.438]
[1693409324508,19.55130164,1703.5,1703.0,1.438]
[1693409325450,19.55130164,1703.5,1702.9,1.8779]
[1693409325451,19.55130164,1703.5,1702.9,3.3159]
[1693409327043,19.09035625,1703.5,1702.9,3.3159]
[1693409328020,24.96064625,1703.5,1702.9,3.3159]
[1693409328240,2.49606462,1703.4,1702.9,3.3159]
[1693409328750,2.49606462,1703.4,1702.9,1.438]
[1693409329135,0.24182512,1703.3,1702.9,1.438]
[1693409329335,13.22006625,1703.5,1702.9,1.438]
[1693409329856,2.1312,1703.5,1702.8,3.50557543]
[1693409330056,2.1312,1703.5,1703.2,1.438]
[1693409330281,32.044,1703.8,1703.4,1.438]
[1693409330587,49.03024685,1704.1,1703.6,1.438]
[1693409330588,30.59012342,1704.1,1703.6,1.438]
[1693409330856,4.04903166,1704.2,1703.6,1.438]
[1693409331019,8.93726323,1704.2,1703.6,1.438]
[1693409332446,14.80511323,1704.2,1703.6,1.438]
[1693409332958,13.73526671,1704.2,1703.6,1.438]
[1693409333662,7.86741671,1704.2,1703.6,1.438]
[1693409334230,6.91458065,1704.2,1703.6,1.438]
[1693409334432,2.064,1704.2,1703.6,1.438]
[1693409334656,3.0,1704.2,1703.8,1.438]
[1693409336002,3.0,1704.2,1703.7,1.438]
[1693409336195,5.87348065,1704.2,1703.6,1.438]
[1693409336380,0.58734807,1704.1,1703.5,1.438]
[1693409336677,12.32915817,1704.2,1703.5,1.438]
[1693409337164,14.33295817,1704.2,1703.5,1.438]
[1693409337761,14.33295817,1704.2,1703.6,1.438]
[1693409338262,8.46502817,1704.2,1703.6,1.438]
[1693409338466,3.58774752,1704.2,1703.6,1.438]
[1693409340157,3.58774752,1704.2,1703.7,1.438]
[1693409340158,3.0,1704.2,1703.7,1.438]
[1693409340466,2.0038,1704.3,1703.7,4.31148065]
[1693409340777,39.03978472,1704.4,1704.0,1.438]
[1693409340778,29.98,1704.4,1704.0,1.438]
[1693409341061,12.64879514,1704.6,1704.0,1.438]
[1693409341062,15.39431856,1704.6,1704.0,1.438]
[1693409341266,2.87348065,1704.5,1704.0,1.438]
[1693409342631,8.74031065,1704.5,1703.9,3.3883]
[1693409342827,0.87403106,1704.4,1703.7,1.438]
[1693409343033,17.50791923,1704.4,1703.6,4.9817]
[1693409343370,7.98952,1704.3,1703.6,4.9817]
[1693409343565,18.75626817,1704.3,1703.6,1.9573]
[1693409343756,8.104872,1704.2,1703.6,1.9573]
[1693409344156,8.31777031,1704.2,1703.6,1.9573]
[1693409344360,8.92977031,1704.2,1703.6,1.9573]
[1693409350986,11.80325096,1704.2,1703.6,1.9573]
[1693409351187,1.1803251,1704.1,1703.6,1.9573]
[1693409351693,1.1803251,1704.1,1703.5,0.47850757]
[1693409351890,1.1803251,1704.1,1703.4,4.9577]
[1693409352060,1.1803251,1704.1,1703.5,1.438]
[1693409355873,1.9464,1704.0,1703.5,1.438]
[1693409356264,1.9464,1704.0,1703.5,2.22111806]
[1693409362619,1.9464,1704.0,1703.6,1.438]
[1693409367218,2.122,1704.3,1703.5,1.2540518]
[1693409367418,2.122,1704.3,1703.9,1.438]
[1693409367999,2.122,1704.3,1703.8,1.438]
[1693409368560,0.87403106,1704.4,1703.9,1.438]
[1693409368839,3.87403106,1704.4,1703.9,1.438]
[1693409369134,3.0,1704.4,1703.9,1.438]
[1693409369534,1.9449,1704.4,1703.9,1.438]
[1693409375974,2.55555298,1704.4,1703.9,1.438]
[1693409376390,2.55555298,1704.4,1703.8,0.61380873]
[1693409376391,2.55555298,1704.4,1704.0,1.438]
[1693409376666,0.61065298,1704.4,1704.1,1.438]
[1693409377021,0.61065298,1704.4,1704.0,1.438]
[1693409378625,0.61065298,1704.4,1704.1,1.438]
[1693409381676,2.57425298,1704.5,1704.1,1.438]
[1693409381881,3.49023245,1704.5,1704.1,1.438]
[1693409382174,0.61065298,1704.4,1704.1,1.438]
[1693409382381,2.87957947,1704.5,1704.0,1.438]
[1693409382382,3.49023245,1704.5,1704.0,1.438]
[1693409382680,0.61065298,1704.4,1704.0,1.438]
[1693409383539,3.49023245,1704.5,1704.1,1.438]
[1693409384067,2.57425298,1704.5,1704.1,1.438]
[1693409391386,2.80705298,1704.6,1704.3,1.438]
[1693409392489,3.45893245,1704.7,1704.3,1.438]
[1693409392689,4.74585298,1704.7,1704.3,1.438]
[1693409393790,0.28055941,1704.6,1704.3,1.438]
[1693409394094,4.74585298,1704.7,1704.3,1.438]
[1693409395300,4.1352,1704.7,1704.3,1.438]
[1693409396090,7.48326595,1704.7,1704.3,1.438]
[1693409396258,7.48326595,1704.7,1704.1,1.438]
[1693409398477,4.1352,1704.7,1704.2,1.438]
[1693409398713,4.1352,1704.7,1704.3,1.438]
[1693409399995,4.1352,1704.7,1704.2,1.438]
[1693409401969,4.1352,1704.7,1704.3,1.438]
[1693409402401,4.1352,1704.7,1704.4,1.438]
[1693409402572,1.9323,1704.7,1704.3,1.438]
[1693409403800,31.60763245,1705.0,1704.0,5.98681741]
[1693409404014,32.1149,1705.0,1704.6,1.438]
[1693409404188,2.1349,1705.0,1704.7,1.438]
[1693409405182,0.101,1705.0,1704.9,1.438]
[1693409405491,0.101,1705.0,1704.9,4.74262872]
[1693409406708,0.101,1705.0,1704.9,1.86914807]
[1693409408078,0.101,1705.0,1704.9,1.672747]
[1693409408910,0.101,1705.0,1704.9,0.234747]
[1693409417538,0.101,1705.0,1704.7,1.438]
[1693409417709,0.101,1705.0,1704.6,1.438]
[1693409417897,2.0042,1705.0,1704.6,1.438]
[1693409418341,2.0042,1705.0,1704.6,1.8818]
[1693409418639,2.0042,1705.0,1704.5,1.438]
[1693409418839,4.2012,1705.0,1704.4,1.438]
[1693409419147,4.2012,1705.0,1704.4,0.46646436]
[1693409419440,4.2012,1705.0,1704.3,1.61334673]
[1693409419735,4.77522,1705.0,1704.4,1.438]
[1693409420512,14.95180065,1705.0,1704.2,4.52982273]
[1693409420711,14.95180065,1705.0,1704.2,1.438]
[1693409421271,13.51380065,1705.0,1704.3,1.438]
[1693409421458,7.64870065,1705.0,1704.3,1.438]
[1693409421762,0.76487007,1704.9,1704.3,1.438]
[1693409422211,4.2012,1705.0,1704.5,1.438]
[1693409422939,2.298,1705.0,1704.5,1.438]
[1693409423244,2.298,1705.0,1704.6,1.438]
[1693409425536,2.298,1705.0,1704.5,4.31148065]
[1693409425737,2.298,1705.0,1704.4,1.438]
[1693409427261,3.124378,1705.0,1704.4,1.438]
[1693409427563,2.298,1705.0,1704.6,1.438]
[1693409428263,4.2907,1705.0,1704.6,1.438]
[1693409428790,0.101,1705.0,1704.7,1.438]
[1693409429238,0.101,1705.0,1704.7,4.31148065]
[1693409430581,0.101,1705.0,1704.7,1.438]
[1693409434653,0.101,1705.0,1704.5,1.438]
[1693409434851,2.1595,1705.0,1704.5,4.31148065]
[1693409435075,2.1595,1705.0,1704.5,4.80098872]
[1693409437302,2.1595,1705.0,1704.6,1.438]
[1693409437519,2.1595,1705.0,1704.7,1.438]
[1693409437661,0.101,1705.0,1704.8,1.438]
[1693409438008,0.101,1705.0,1704.8,1.86914807]
[1693409438961,0.101,1705.0,1704.9,4.31148065]
[1693409439187,0.101,1705.0,1704.9,4.79148065]
[1693409440203,0.101,1705.0,1704.9,5.81065118]
[1693409440520,0.101,1705.0,1704.9,6.49621198]
[1693409440888,0.101,1705.0,1704.9,5.47704145]
[1693409441086,0.101,1705.0,1704.9,6.49623637]
[1693409441810,0.101,1705.0,1704.9,5.47704145]
[1693409442988,0.101,1705.0,1704.9,12.49624236]
[1693409443687,0.101,1705.0,1704.9,12.73094636]
[1693409445930,0.101,1705.0,1704.9,13.31454636]
[1693409446788,0.101,1705.0,1704.9,13.92835509]
[1693409446989,0.101,1705.1,1705.0,1.438]
[1693409447189,0.101,1705.1,1705.0,11.84409182]
[1693409447407,0.101,1705.1,1705.0,12.42769182]
[1693409450429,0.101,1705.1,1705.0,9.42769182]
[1693409451434,0.101,1705.1,1705.0,12.42769182]
[1693409452293,0.101,1705.1,1705.0,11.40849091]
[1693409452496,0.101,1705.1,1705.0,9.97049091]
[1693409454299,0.101,1705.1,1705.0,11.40849091]
[1693409454695,0.101,1705.1,1705.0,12.42759225]
[1693409455125,0.101,1705.1,1705.0,11.40849091]
[1693409455533,0.101,1705.1,1705.0,13.0153148]
[1693409457078,0.101,1705.1,1705.0,13.01531851]
[1693409459189,0.101,1705.1,1705.0,12.42757099]
[1693409459400,0.101,1705.1,1705.0,11.40849091]
[1693409462955,0.101,1705.1,1705.0,9.97049091]
[1693409463155,0.101,1705.1,1705.0,11.40849091]
[1693409470296,0.101,1705.1,1705.0,5.876]
[1693409470494,0.101,1705.1,1705.0,3.0]
[1693409470693,0.101,1705.1,1704.9,0.71516403]
[1693409470854,0.101,1705.1,1704.9,3.58864468]
[1693409471064,0.101,1705.1,1705.0,3.0]
[1693409471589,0.101,1705.1,1704.9,2.15316403]
[1693409471790,0.101,1705.1,1704.9,5.02664468]
[1693409472099,0.101,1705.1,1705.0,3.0]
[1693409472303,0.101,1705.1,1704.7,0.61369532]
[1693409472499,0.101,1705.1,1704.6,1.438]
[1693409472685,0.101,1705.1,1704.5,2.05169532]
[1693409472889,0.101,1705.1,1704.6,1.01933113]
[1693409473803,2.0622,1705.1,1704.6,1.01933113]
[1693409476403,2.50525,1705.1,1704.6,2.45733113]
[1693409476606,2.0622,1705.1,1704.7,1.438]
[1693409476898,2.0622,1705.1,1704.5,5.52407636]